bitfinex-derivatives/quotes_BTCF0:USTF0_20260214
["timestamp","ask_amount","ask_price","bid_price","bid_amount"]
[1771102979168,0.014254,70194.0,70190.0,0.0144]
[1771102979871,0.014254,70192.0,70190.0,0.0144]
[1771102980069,0.014254,70193.0,70190.0,0.0144]
[1771102980273,0.014254,70194.0,70190.0,0.0144]
[1771102980466,0.014253,70195.0,70190.0,0.0144]
[1771102980771,0.014254,70194.0,70188.0,0.028655]
[1771102981158,0.14288425,70195.0,70174.0,0.42073648]
[1771102981464,0.014255,70189.0,70182.0,0.014256]
[1771102981671,0.014255,70186.0,70182.0,0.0144]
[1771102982260,0.014255,70189.0,70182.0,0.0144]
[1771102982464,0.014255,70187.0,70182.0,0.0144]
[1771102982669,0.014255,70189.0,70183.0,0.014256]
[1771102982869,0.014255,70189.0,70182.0,0.028656]
[1771102983361,0.014255,70189.0,70183.0,0.014256]
[1771102985068,0.014255,70188.0,70182.0,0.0144]
[1771102985270,0.014255,70189.0,70182.0,0.028656]
[1771102985973,0.014255,70188.0,70182.0,0.028656]
[1771102986159,0.014255,70188.0,70182.0,0.0144]
[1771102986359,0.014255,70187.0,70182.0,0.0144]
[1771102986565,0.014255,70189.0,70182.0,0.0144]
[1771102986770,0.014255,70188.0,70182.0,0.0144]
[1771102986970,0.014255,70188.0,70182.0,0.028656]
[1771102987164,0.0144,70190.0,70182.0,0.0144]
[1771102987472,0.014255,70187.0,70182.0,0.0144]
[1771102987974,0.014255,70188.0,70182.0,0.028656]
[1771102989069,0.014255,70189.0,70182.0,0.028656]
[1771102989474,0.0144,70190.0,70188.0,0.014255]
[1771102989774,0.0144,70190.0,70186.0,0.014255]
[1771102989971,0.0144,70190.0,70187.0,0.014255]
[1771102990173,0.0144,70190.0,70186.0,0.014255]
[1771102990371,0.0144,70190.0,70185.0,0.014255]
[1771102991271,0.0144,70190.0,70186.0,0.014255]
[1771102991570,0.014253,70197.0,70188.0,0.014255]
[1771102991774,0.028508,70194.0,70187.0,0.014255]
[1771102991968,0.014254,70193.0,70187.0,0.014255]
[1771102992676,0.028653,70196.0,70187.0,0.014255]
[1771102992870,0.014254,70194.0,70187.0,0.014255]
[1771102993468,0.0144,70196.0,70190.0,0.014254]
[1771102993674,0.0144,70196.0,70191.0,0.014254]
[1771102994371,0.014253,70197.0,70191.0,0.014254]
[1771102994572,0.171213,70198.0,70191.0,0.014254]
[1771102994877,0.185466,70198.0,70191.0,0.014254]
[1771102995072,0.014253,70196.0,70190.0,0.0144]
[1771102995278,0.014253,70197.0,70190.0,0.0144]
[1771102995479,0.014253,70196.0,70190.0,0.0144]
[1771102995778,0.15696,70198.0,70190.0,0.0144]
[1771102996181,0.014253,70196.0,70190.0,0.0144]
[1771102996374,0.014253,70195.0,70190.0,0.0144]
[1771102997173,0.014253,70197.0,70190.0,0.0144]
[1771102997377,0.014253,70197.0,70191.0,0.014254]
[1771102997880,0.04242153,70200.0,70192.0,0.014254]
[1771102998076,0.07107353,70200.0,70194.0,0.014254]
[1771102998384,0.07107353,70200.0,70193.0,0.014254]
[1771102998772,0.014253,70198.0,70190.0,0.028654]
[1771102998977,0.014253,70196.0,70190.0,0.028654]
[1771102999180,0.014253,70196.0,70183.0,0.014256]
[1771102999181,0.12927888,70197.0,70179.0,0.52592061]
[1771102999377,0.12927888,70197.0,70173.0,0.63110473]
[1771102999378,0.014256,70180.0,70178.0,0.0144]
[1771102999678,0.014257,70179.0,70175.0,0.0144]
[1771102999875,0.0144,70185.0,70176.0,0.014257]
[1771103000177,0.0144,70185.0,70175.0,0.0144]
[1771103000676,0.014256,70182.0,70176.0,0.028657]
[1771103000882,0.014256,70180.0,70176.0,0.22808]
[1771103001076,0.028512,70183.0,70174.0,0.2597102]
[1771103001281,0.014257,70175.0,70174.0,0.23120423]
[1771103001483,0.014256,70180.0,70174.0,0.23120423]
[1771103001791,0.014256,70181.0,70174.0,0.23120423]
[1771103001977,0.014257,70179.0,70174.0,0.23120423]
[1771103002179,0.0144,70181.0,70174.0,0.23120423]
[1771103002379,0.014255,70189.0,70183.0,0.014256]
[1771103002691,0.15696,70195.0,70190.0,0.014254]
[1771103002886,0.12927888,70215.0,70193.0,0.014254]
[1771103003179,0.014251,70207.0,70200.0,0.014252]
[1771103003378,0.014251,70206.0,70200.0,0.014252]
[1771103003584,0.014251,70205.0,70200.0,0.014252]
[1771103003783,0.014251,70206.0,70200.0,0.014252]
[1771103004088,0.014251,70206.0,70201.0,0.014252]
[1771103004289,0.014251,70205.0,70198.0,0.014253]
[1771103004483,0.014251,70206.0,70198.0,0.014253]
[1771103004484,0.014252,70204.0,70198.0,0.014253]
[1771103005186,0.014253,70198.0,70195.0,0.0144]
[1771103005487,0.014253,70198.0,70189.0,0.014255]
[1771103005690,0.014253,70198.0,70191.0,0.24545823]
[1771103005989,0.014253,70198.0,70191.0,0.23120423]
[1771103005990,0.014253,70197.0,70191.0,0.23120423]
[1771103006376,0.014253,70195.0,70191.0,0.23120423]
[1771103006585,0.014253,70196.0,70191.0,0.23120423]
[1771103006776,0.014253,70197.0,70191.0,0.23120423]
[1771103007782,0.14256,70217.0,70194.0,0.1269367]
[1771103007983,0.014251,70206.0,70204.0,0.1269367]
[1771103008282,0.010161,70208.0,70204.0,0.23120423]
[1771103008481,0.0144,70212.0,70203.0,0.0144]
[1771103008682,0.01425,70210.0,70204.0,0.23120423]
[1771103008989,0.014251,70208.0,70204.0,0.23120423]
[1771103009185,0.028502,70208.0,70204.0,0.23120423]
[1771103009384,0.01425,70210.0,70204.0,0.23120423]
[1771103009786,0.014251,70208.0,70204.0,0.23120423]
[1771103009992,0.014251,70208.0,70198.0,0.156813]
[1771103009993,0.014252,70201.0,70193.0,0.014254]
[1771103010195,0.014252,70200.0,70194.0,0.15696]
[1771103010993,0.014252,70202.0,70195.0,0.014253]
[1771103011184,0.0144,70208.0,70199.0,0.014252]
[1771103011385,0.014251,70206.0,70200.0,0.0144]
[1771103011586,0.014252,70202.0,70194.0,0.156813]
[1771103011791,0.014251,70205.0,70195.0,0.028653]
[1771103011991,0.014252,70203.0,70195.0,0.028653]
[1771103012191,0.014252,70203.0,70195.0,0.1698427]
[1771103012493,0.014252,70203.0,70195.0,0.1555897]
[1771103012894,0.014252,70202.0,70195.0,0.1555897]
[1771103013093,0.007252,70202.0,70195.0,0.1555897]
[1771103013293,0.014252,70201.0,70195.0,0.1413367]
[1771103013488,0.014252,70203.0,70195.0,0.0144]
[1771103013792,0.014251,70206.0,70198.0,0.014253]
[1771103014092,0.0144,70208.0,70198.0,0.0144]
[1771103014093,0.028504,70204.0,70198.0,0.0144]
[1771103014389,0.014252,70203.0,70198.0,0.0144]
[1771103014690,0.014252,70204.0,70198.0,0.0144]
[1771103015694,0.014251,70207.0,70198.0,0.028653]
[1771103015892,0.014251,70207.0,70198.0,0.0144]
[1771103016095,0.014251,70207.0,70199.0,0.014252]
[1771103016293,0.0144,70208.0,70201.0,0.014252]
[1771103016495,0.014251,70206.0,70198.0,0.028653]
[1771103017195,0.028651,70208.0,70200.0,0.014252]
[1771103017497,0.028651,70208.0,70201.0,0.014252]
[1771103017798,0.014252,70204.0,70198.0,0.0144]
[1771103017990,0.0144,70208.0,70198.0,0.0144]
[1771103018190,0.014251,70207.0,70199.0,0.014253]
[1771103018387,0.0144,70208.0,70204.0,0.014251]
[1771103019295,0.0144,70210.0,70203.0,0.014252]
[1771103019495,0.014251,70209.0,70202.0,0.014252]
[1771103019698,0.014251,70207.0,70201.0,0.0144]
[1771103019892,0.014251,70206.0,70201.0,0.0144]
[1771103020195,0.02865,70210.0,70204.0,0.014252]
[1771103020496,0.02865,70210.0,70201.0,0.028652]
[1771103020497,0.02865,70210.0,70203.0,0.014252]
[1771103020893,0.02865,70210.0,70203.0,0.028504]
[1771103021200,0.02865,70210.0,70201.0,0.028652]
[1771103021397,0.014251,70209.0,70201.0,0.028652]
[1771103021599,0.0144,70210.0,70201.0,0.15021173]
[1771103021797,0.014249,70216.0,70201.0,0.15021173]
[1771103021998,0.01425,70213.0,70206.0,0.014251]
[1771103022400,0.01425,70214.0,70207.0,0.014251]
[1771103022591,0.0144,70213.0,70207.0,0.014251]
[1771103022988,0.01425,70213.0,70207.0,0.014251]
[1771103023203,0.014248,70220.0,70214.0,0.014249]
[1771103023398,0.014248,70220.0,70214.0,0.028649]
[1771103023900,0.014249,70218.0,70214.0,0.0144]
[1771103024398,0.014249,70219.0,70214.0,0.028649]
[1771103024598,0.014248,70220.0,70215.0,0.014249]
[1771103024799,0.014249,70219.0,70214.0,0.028649]
[1771103025000,0.014248,70220.0,70215.0,0.014249]
[1771103025205,0.014248,70223.0,70210.0,0.0144]
[1771103025394,0.014248,70220.0,70212.0,0.01425]
[1771103025594,0.014249,70217.0,70212.0,0.01425]
[1771103026096,0.014248,70219.0,70211.0,0.01425]
[1771103026408,0.01425,70214.0,70210.0,0.15599951]
[1771103026902,0.014249,70217.0,70211.0,0.01425]
[1771103027103,0.014249,70215.0,70210.0,0.15599951]
[1771103027302,0.01425,70212.0,70210.0,0.0144]
[1771103027505,0.01425,70213.0,70210.0,0.0144]
[1771103028105,0.01520138,70217.0,70210.0,0.17024951]
[1771103028406,0.014248,70222.0,70215.0,0.014249]
[1771103028595,0.014249,70219.0,70215.0,0.0144]
[1771103029392,0.0144,70223.0,70215.0,0.0144]
[1771103029603,0.014248,70220.0,70215.0,0.0144]
[1771103029802,0.014248,70221.0,70215.0,0.0144]
[1771103029999,0.028496,70222.0,70215.0,0.0144]
[1771103030305,0.014248,70220.0,70215.0,0.0144]
[1771103030603,0.014248,70221.0,70215.0,0.028649]
[1771103031005,0.0144,70223.0,70215.0,0.0144]
[1771103031204,0.0144,70223.0,70218.0,0.014249]
[1771103031504,0.0144,70223.0,70220.0,0.014248]
[1771103031706,0.0144,70223.0,70218.0,0.014249]
[1771103032007,0.014248,70223.0,70218.0,0.028649]
[1771103032398,0.014247,70225.0,70218.0,0.028649]
[1771103032595,0.014248,70223.0,70218.0,0.028649]
[1771103034209,0.028496,70223.0,70218.0,0.0144]
[1771103034610,0.042744,70224.0,70218.0,0.0144]
[1771103034808,0.014248,70223.0,70218.0,0.028649]
[1771103035206,0.028496,70223.0,70218.0,0.0144]
[1771103036112,0.014248,70222.0,70218.0,0.0144]
[1771103036313,0.014248,70223.0,70218.0,0.028649]
[1771103036508,0.014248,70224.0,70218.0,0.028649]
[1771103036712,0.0144,70228.0,70223.0,0.014248]
[1771103036911,0.028494,70229.0,70223.0,0.014248]
[1771103037210,0.014247,70228.0,70223.0,0.014248]
[1771103038018,0.014247,70228.0,70224.0,0.0144]
[1771103040519,0.014247,70226.0,70224.0,0.0144]
[1771103040719,0.13807521,70225.0,70205.0,0.014251]
[1771103040908,0.01425,70214.0,70206.0,0.15688]
[1771103041114,0.014249,70215.0,70210.0,0.01425]
[1771103041409,0.014249,70215.0,70211.0,0.01436]
[1771103042019,0.01425,70214.0,70208.0,0.014251]
[1771103042319,0.01425,70214.0,70209.0,0.01436]
[1771103043114,0.01425,70214.0,70210.0,0.01436]
[1771103043310,0.13807521,70209.0,70188.0,0.14159951]
[1771103043612,0.014252,70200.0,70191.0,0.014254]
[1771103043812,0.01436,70202.0,70191.0,0.14159951]
[1771103044009,0.01436,70207.0,70193.0,0.14159951]
[1771103044214,0.014252,70203.0,70195.0,0.014253]
[1771103044514,0.014252,70204.0,70197.0,0.014253]
[1771103044715,0.014252,70203.0,70197.0,0.014253]
[1771103045421,0.014252,70204.0,70197.0,0.028506]
[1771103045620,0.014251,70206.0,70196.0,0.01436]
[1771103045621,0.014252,70205.0,70198.0,0.014253]
[1771103045912,0.014252,70205.0,70199.0,0.014253]
[1771103046118,0.007612,70205.0,70199.0,0.014253]
[1771103046319,0.006192,70205.0,70199.0,0.014253]
[1771103046519,0.006192,70205.0,70200.0,0.01436]
[1771103046720,0.014251,70206.0,70200.0,0.01436]
[1771103046921,0.014252,70205.0,70200.0,0.01436]
[1771103047620,0.014252,70201.0,70200.0,0.0144]
[1771103047810,0.01436,70207.0,70189.0,0.014254]
[1771103047811,0.014252,70202.0,70196.0,0.01436]
[1771103048015,0.014252,70201.0,70196.0,0.01436]
[1771103048212,0.028612,70204.0,70196.0,0.028613]
[1771103048410,0.028612,70204.0,70196.0,0.01436]
[1771103048411,0.014252,70201.0,70196.0,0.01436]
[1771103049329,0.014252,70202.0,70196.0,0.01436]
[1771103049823,0.028612,70204.0,70197.0,0.014253]
[1771103050622,0.028612,70204.0,70198.0,0.014253]
[1771103051122,0.014251,70209.0,70199.0,0.014253]
[1771103051324,0.028504,70205.0,70198.0,0.014253]
[1771103051519,0.01436,70204.0,70198.0,0.014253]
[1771103051920,0.014252,70202.0,70195.0,0.028613]
[1771103052124,0.01436,70204.0,70195.0,0.028613]
[1771103052528,0.014252,70203.0,70197.0,0.014253]
[1771103052821,0.028612,70204.0,70197.0,0.014253]
[1771103053023,0.028612,70204.0,70197.0,0.028506]
[1771103053223,0.028612,70204.0,70197.0,0.014253]
[1771103053427,0.028612,70204.0,70198.0,0.014253]
[1771103054025,0.01436,70204.0,70196.0,0.014253]
[1771103054225,0.01436,70204.0,70200.0,0.014252]
[1771103054821,0.01436,70204.0,70199.0,0.014253]
[1771103055526,0.01436,70204.0,70200.0,0.014252]
[1771103056624,0.01436,70204.0,70199.0,0.014253]
[1771103057525,0.028611,70206.0,70200.0,0.014252]
[1771103059524,0.14027758,70217.0,70206.0,0.014251]
[1771103059725,0.01425,70211.0,70205.0,0.014251]
[1771103059925,0.01436,70211.0,70205.0,0.014251]
[1771103060320,0.01436,70211.0,70206.0,0.014251]
[1771103060822,0.01436,70211.0,70196.0,0.014253]
[1771103061020,0.014252,70202.0,70197.0,0.15692]
[1771103062219,0.028504,70202.0,70197.0,0.14256]
[1771103062421,0.014253,70196.0,70177.0,0.014257]
[1771103062616,0.014255,70188.0,70178.0,0.01436]
[1771103062826,0.014255,70187.0,70179.0,0.014257]
[1771103063018,0.15463758,70188.0,70180.0,0.014256]
[1771103063224,0.01436,70188.0,70184.0,0.014255]
[1771103063424,0.01436,70188.0,70183.0,0.014256]
[1771103063830,0.01436,70188.0,70181.0,0.014256]
[1771103064129,0.01436,70188.0,70184.0,0.014256]
[1771103064325,0.01436,70188.0,70181.0,0.014256]
[1771103064326,0.01436,70188.0,70183.0,0.014256]
[1771103064525,0.014256,70184.0,70177.0,0.156817]
[1771103065129,0.028615,70185.0,70178.0,0.014257]
[1771103065318,0.042871,70185.0,70178.0,0.014257]
[1771103065519,0.028615,70185.0,70179.0,0.014257]
[1771103065733,0.014255,70186.0,70179.0,0.028513]
[1771103066030,0.01436,70187.0,70182.0,0.014256]
[1771103067029,0.014253,70199.0,70191.0,0.014254]
[1771103067230,0.028613,70199.0,70192.0,0.014254]
[1771103067530,0.014253,70198.0,70192.0,0.014254]
[1771103067720,0.14027758,70214.0,70202.0,0.014252]
[1771103067924,0.14256,70215.0,70198.0,0.014253]
[1771103067925,0.014251,70210.0,70203.0,0.014252]
[1771103068120,0.014251,70208.0,70202.0,0.014252]
[1771103068628,0.014251,70208.0,70203.0,0.014252]
[1771103068828,0.028611,70209.0,70203.0,0.014252]
[1771103069026,0.01436,70209.0,70206.0,0.014251]
[1771103069532,0.01436,70209.0,70205.0,0.014251]
[1771103070132,0.028611,70209.0,70205.0,0.014251]
[1771103070332,0.01436,70209.0,70205.0,0.014251]
[1771103070525,0.01436,70209.0,70206.0,0.014251]
[1771103072129,0.01436,70209.0,70202.0,0.014252]
[1771103072130,0.028611,70209.0,70203.0,0.014252]
[1771103072632,0.014252,70204.0,70200.0,0.01436]
[1771103073033,0.014251,70207.0,70201.0,0.014252]
[1771103073227,0.014251,70208.0,70200.0,0.01436]
[1771103073428,0.014251,70207.0,70201.0,0.014252]
[1771103073633,0.028502,70207.0,70200.0,0.028612]
[1771103073835,0.014251,70207.0,70200.0,0.028612]
[1771103074132,0.014251,70208.0,70201.0,0.014252]
[1771103074333,0.014251,70207.0,70201.0,0.014252]
[1771103074634,0.014251,70206.0,70200.0,0.01436]
[1771103075028,0.014251,70207.0,70200.0,0.01436]
[1771103075231,0.028611,70209.0,70201.0,0.014252]
[1771103075431,0.028611,70209.0,70203.0,0.014252]
[1771103075935,0.014251,70205.0,70200.0,0.01436]
[1771103077535,0.014251,70207.0,70200.0,0.028612]
[1771103078335,0.028611,70209.0,70202.0,0.014252]
[1771103078531,0.01436,70209.0,70203.0,0.014252]
[1771103079238,0.01436,70209.0,70204.0,0.014251]
[1771103079437,0.014249,70218.0,70202.0,0.13475781]
[1771103079633,0.01436,70214.0,70212.0,0.01425]
[1771103079832,0.01436,70214.0,70210.0,0.01425]
[1771103080137,0.01436,70214.0,70211.0,0.01425]
[1771103080537,0.028609,70216.0,70210.0,0.01425]
[1771103080841,0.147121,70215.0,70209.0,0.01425]
[1771103081637,0.147121,70215.0,70206.0,0.014251]
[1771103081638,0.014243,70244.0,70230.0,0.014246]
[1771103081843,0.014245,70238.0,70227.0,0.01436]
[1771103082140,0.014246,70231.0,70227.0,0.01436]
[1771103082332,0.014246,70233.0,70227.0,0.01436]
[1771103082538,0.014245,70236.0,70227.0,0.01436]
[1771103082933,0.01436,70237.0,70227.0,0.01436]
[1771103083136,0.014244,70240.0,70227.0,0.01436]
[1771103083442,0.05202814,70243.0,70235.0,0.014245]
[1771103083629,0.01436,70242.0,70235.0,0.014245]
[1771103083836,0.01436,70242.0,70231.0,0.13814413]
[1771103084031,0.014244,70241.0,70235.0,0.014245]
[1771103084244,0.014245,70238.0,70232.0,0.014246]
[1771103084433,0.01436,70238.0,70232.0,0.014246]
[1771103084629,0.01436,70238.0,70230.0,0.028606]
[1771103085641,0.014245,70237.0,70230.0,0.028606]
[1771103086138,0.014246,70230.0,70218.0,0.13814413]
[1771103086336,0.014246,70232.0,70224.0,0.014247]
[1771103086642,0.014246,70231.0,70224.0,0.028607]
[1771103086838,0.014246,70231.0,70225.0,0.014247]
[1771103087041,0.014246,70231.0,70224.0,0.01436]
[1771103087339,0.01436,70230.0,70224.0,0.028607]
[1771103087541,0.01436,70230.0,70225.0,0.014247]
[1771103087935,0.028606,70230.0,70224.0,0.01436]
[1771103088642,0.028606,70230.0,70222.0,0.014248]
[1771103089032,0.014247,70229.0,70221.0,0.01436]
[1771103089246,0.01436,70230.0,70221.0,0.01436]
[1771103089247,0.014247,70228.0,70221.0,0.01436]
[1771103089641,0.014247,70227.0,70221.0,0.01436]
[1771103090040,0.014247,70229.0,70221.0,0.01436]
[1771103090340,0.014247,70229.0,70221.0,0.028608]
[1771103090536,0.028606,70230.0,70222.0,0.014248]
[1771103090845,0.014247,70229.0,70221.0,0.028608]
[1771103091048,0.014247,70229.0,70222.0,0.014248]
[1771103091648,0.014246,70229.0,70221.0,0.028608]
[1771103091944,0.014246,70229.0,70222.0,0.014248]
[1771103093140,0.014246,70229.0,70221.0,0.01436]
[1771103093141,0.014247,70228.0,70221.0,0.028608]
[1771103093447,0.014247,70229.0,70222.0,0.014248]
[1771103093944,0.028606,70230.0,70223.0,0.014248]
[1771103094143,0.028606,70230.0,70222.0,0.014248]
[1771103094342,0.014246,70229.0,70222.0,0.014248]
[1771103094542,0.014247,70228.0,70221.0,0.01436]
[1771103094742,0.014247,70228.0,70221.0,0.028608]
[1771103095143,0.028606,70230.0,70222.0,0.014248]
[1771103095946,0.014247,70229.0,70222.0,0.014248]
[1771103096739,0.014247,70228.0,70221.0,0.028608]
[1771103096940,0.014247,70227.0,70220.0,0.014248]
[1771103097141,0.014247,70226.0,70220.0,0.014248]
[1771103097342,0.01436,70226.0,70221.0,0.014248]
[1771103097537,0.01436,70226.0,70220.0,0.014248]
[1771103097743,0.01436,70226.0,70221.0,0.014248]
[1771103098849,0.01436,70226.0,70220.0,0.014248]
[1771103099044,0.01436,70226.0,70221.0,0.014248]
[1771103099645,0.01436,70226.0,70218.0,0.01436]
[1771103099841,0.014249,70215.0,70208.0,0.014251]
[1771103100041,0.014249,70215.0,70210.0,0.01436]
[1771103100240,0.01436,70215.0,70203.0,0.014252]
[1771103100442,0.014253,70198.0,70197.0,4.3e-07]
[1771103100645,0.028613,70199.0,70192.0,0.014254]
[1771103101042,0.014253,70198.0,70192.0,0.014254]
[1771103101244,0.028613,70199.0,70192.0,0.014254]
[1771103101444,0.014253,70198.0,70191.0,0.014254]
[1771103101650,0.014254,70195.0,70186.0,0.156775]
[1771103101852,0.01436,70194.0,70181.0,0.13814413]
[1771103102152,0.01436,70193.0,70191.0,0.014254]
[1771103102349,0.00017428,70197.0,70191.0,0.014254]
[1771103102350,0.00017428,70197.0,70196.0,0.014253]
[1771103102549,0.00013376,70197.0,70196.0,0.014253]
[1771103102748,0.14252,70210.0,70204.0,0.014252]
[1771103103052,0.15677,70210.0,70203.0,0.014252]
[1771103103244,0.028611,70209.0,70201.0,0.014252]
[1771103103445,0.014251,70208.0,70202.0,0.014252]
[1771103104046,0.028611,70209.0,70202.0,0.014252]
[1771103104248,0.028611,70209.0,70203.0,0.014252]
[1771103104449,0.01436,70209.0,70204.0,0.014252]
[1771103104658,0.01436,70209.0,70203.0,0.014252]
[1771103104953,0.028611,70209.0,70203.0,0.014252]
[1771103106458,0.01436,70209.0,70206.0,0.014251]
[1771103107050,0.15688,70210.0,70209.0,0.014251]
[1771103107361,0.712034,70260.0,70212.0,0.01425]
[1771103107362,0.14252,70216.0,70212.0,0.01425]
[1771103107654,0.14252,70219.0,70215.0,0.014249]
[1771103107958,0.14252,70219.0,70216.0,0.014249]
[1771103108158,0.01436,70218.0,70216.0,0.014249]
[1771103109060,0.01436,70218.0,70215.0,0.014249]
[1771103109850,0.014247,70224.0,70219.0,0.014248]
[1771103110052,0.01436,70223.0,70219.0,0.014248]
[1771103110250,0.028608,70223.0,70218.0,0.014249]
[1771103110457,0.028608,70223.0,70216.0,0.014249]
[1771103110658,0.028608,70223.0,70217.0,0.014249]
[1771103111053,0.014249,70219.0,70213.0,0.01425]
[1771103111262,0.014248,70219.0,70213.0,0.01425]
[1771103111652,0.01436,70220.0,70213.0,0.01425]
[1771103111653,0.014249,70218.0,70213.0,0.01425]
[1771103111858,0.014246,70231.0,70224.0,0.014247]
[1771103112164,0.014247,70224.0,70219.0,0.014248]
[1771103112364,0.014248,70223.0,70217.0,0.014249]
[1771103112765,0.01436,70224.0,70220.0,0.014248]
[1771103112969,0.01436,70224.0,70218.0,0.014249]
[1771103113163,0.01436,70224.0,70219.0,0.014248]
[1771103113355,0.01436,70224.0,70220.0,0.014248]
[1771103113560,0.014248,70221.0,70216.0,0.01436]
[1771103114167,0.014248,70221.0,70215.0,0.014249]
[1771103114365,0.014248,70221.0,70216.0,0.01436]
[1771103114562,0.014248,70222.0,70216.0,0.028609]
[1771103114868,0.014248,70222.0,70216.0,0.01436]
[1771103115161,0.014248,70223.0,70216.0,0.01436]
[1771103115363,0.01436,70225.0,70221.0,0.014248]
[1771103115571,0.014247,70225.0,70218.0,0.014249]
[1771103115768,0.014247,70225.0,70219.0,0.014248]
[1771103116371,0.01436,70226.0,70220.0,0.014248]
[1771103116566,0.014248,70223.0,70217.0,0.014249]
[1771103116766,0.014248,70223.0,70216.0,0.028609]
[1771103117464,0.014248,70222.0,70216.0,0.01436]
[1771103117864,0.014247,70225.0,70211.0,0.28997415]
[1771103118071,0.014248,70223.0,70212.0,0.01436]
[1771103118270,0.014248,70220.0,70212.0,0.02861]
[1771103118465,0.014249,70219.0,70212.0,0.02861]
[1771103118669,0.014249,70215.0,70212.0,0.01436]
[1771103118864,0.014249,70217.0,70212.0,0.01436]
[1771103119165,0.014248,70220.0,70211.0,0.15677]
[1771103119364,0.014247,70225.0,70207.0,0.14745415]
[1771103119365,0.01425,70213.0,70207.0,0.01436]
[1771103119560,0.01425,70213.0,70206.0,0.01436]
[1771103119867,0.01425,70213.0,70204.0,0.028611]
[1771103120061,0.01436,70214.0,70207.0,0.014251]
[1771103120775,0.01436,70214.0,70204.0,0.01436]
[1771103120965,0.01436,70214.0,70207.0,0.014251]
[1771103121159,0.01436,70214.0,70209.0,0.014251]
[1771103121773,0.01436,70214.0,70210.0,0.01425]
[1771103122272,0.01436,70214.0,70209.0,0.01425]
[1771103122473,0.01436,70214.0,70209.0,0.0285]
[1771103123366,0.01436,70214.0,70210.0,0.01425]
[1771103125275,0.01436,70214.0,70212.0,0.01425]
[1771103125970,0.01436,70214.0,70211.0,0.01425]
[1771103126871,0.01436,70214.0,70204.0,0.01436]
[1771103127076,0.014252,70202.0,70196.0,0.014253]
[1771103127276,0.01436,70205.0,70200.0,0.014252]
[1771103127477,0.01436,70205.0,70199.0,0.014252]
[1771103128270,0.01436,70205.0,70200.0,0.014252]
[1771103130778,0.01436,70205.0,70201.0,0.014252]
[1771103131874,0.01436,70205.0,70197.0,0.01436]
[1771103131875,0.01436,70205.0,70204.0,0.014252]
[1771103132176,0.01436,70211.0,70210.0,0.01425]
[1771103132371,0.05688,70214.0,70211.0,0.01425]
[1771103132573,0.07124,70214.0,70212.0,0.01425]
[1771103132970,0.14252,70221.0,70211.0,0.16181415]
[1771103133172,0.01436,70220.0,70216.0,0.014249]
[1771103133376,0.01436,70220.0,70215.0,0.014249]
[1771103133576,0.01436,70220.0,70214.0,0.01425]
[1771103133980,0.01436,70220.0,70215.0,0.014249]
[1771103135080,0.01436,70220.0,70216.0,0.014249]
[1771103135379,0.01436,70220.0,70217.0,0.014249]
[1771103136480,0.01436,70220.0,70163.0,0.03608404]
[1771103136481,0.15461697,70210.0,70201.0,0.014252]
[1771103136676,0.014251,70207.0,70201.0,0.014252]
[1771103137277,0.014251,70206.0,70200.0,0.01436]
[1771103137582,0.014251,70208.0,70201.0,0.014252]
[1771103137876,0.028611,70209.0,70203.0,0.014252]
[1771103139581,0.028611,70209.0,70201.0,0.028504]
[1771103139778,0.028611,70209.0,70201.0,0.014252]
[1771103140470,0.014251,70208.0,70201.0,0.014252]
[1771103140875,0.014251,70208.0,70202.0,0.014252]
[1771103141276,0.014251,70208.0,70201.0,0.014252]
[1771103141982,0.028502,70208.0,70201.0,0.014252]
[1771103142183,0.014251,70208.0,70201.0,0.014252]
[1771103142684,0.014251,70205.0,70200.0,0.01436]
[1771103143177,0.028611,70205.0,70198.0,0.014253]
[1771103143383,0.01436,70205.0,70199.0,0.014252]
[1771103143779,0.028611,70205.0,70199.0,0.014252]
[1771103144980,0.01436,70205.0,70199.0,0.014252]
[1771103145388,0.028611,70205.0,70199.0,0.014252]
[1771103145588,0.01436,70205.0,70199.0,0.014252]
[1771103147889,0.028611,70205.0,70199.0,0.014252]
[1771103148390,0.01436,70205.0,70199.0,0.014252]
[1771103148791,0.028611,70205.0,70199.0,0.014252]
[1771103149490,0.01436,70205.0,70199.0,0.014252]
[1771103149790,0.028611,70205.0,70198.0,0.014253]
[1771103150280,0.01436,70205.0,70198.0,0.014253]
[1771103150485,0.01436,70205.0,70200.0,0.014252]
[1771103150685,0.01436,70205.0,70199.0,0.014252]
[1771103151485,0.028611,70205.0,70197.0,0.01436]
[1771103151790,0.028611,70205.0,70198.0,0.014253]
[1771103155292,0.028611,70205.0,70197.0,0.01436]
[1771103155293,0.01436,70205.0,70197.0,0.01436]
[1771103155793,0.01436,70205.0,70198.0,0.014253]
[1771103155993,0.01436,70205.0,70199.0,0.014252]
[1771103156492,0.014252,70202.0,70194.0,0.014253]
[1771103156684,0.01436,70201.0,70196.0,0.014253]
[1771103156890,0.01436,70201.0,70197.0,0.014253]
[1771103157081,0.01425,70210.0,70197.0,0.014253]
[1771103157082,0.01436,70203.0,70197.0,0.028506]
[1771103157287,0.01436,70203.0,70198.0,0.014253]
[1771103157689,0.01436,70203.0,70197.0,0.014253]
[1771103158394,0.01436,70203.0,70198.0,0.014253]
[1771103158894,0.01436,70203.0,70197.0,0.028506]
[1771103159089,0.01436,70203.0,70198.0,0.014253]
[1771103159995,0.01436,70203.0,70197.0,0.014253]
[1771103160393,0.01436,70203.0,70198.0,0.014253]